Cogmind - Beta 17.1 @@@ ROGUE MODE // 2026.08.25 @ 22:12:08 Player: TheSkyeDoctor Result: Destroyed by 5L-FEP(R) with Subdweller Machine Gun Performance ------------- Evolutions (0) 0 Regions Visited (2) 400 Robots Destroyed (11) 55 Value Destroyed (64) 64 Prototype IDs (1) 20 Alien Tech Used (0) 0 Bonus (5000) 5000 TOTAL SCORE: 5539 Bonus ------- Prayed to X0-1V1 5000 Cogmind --------- Core Integrity 0/150 Matter 266/300 Energy 565/1200 System Corruption 0% Temperature Cool (-666) Movement Core (100) Ox1 Location -10/Subcaves Parts ------- > --- POWER (1) -------- (None) > --- PROPULSION (2) --- (None) > --- UTILITY (2) ------ Small Storage Unit X0-1V1's Piety Tracker > --- WEAPON (2) ------- (None) > --- INVENTORY (8) ---- Ion Engine Improved Terrain Scanner Seismic Detector Peak State ------------ > --- POWER ------------ Ion Engine > --- PROPULSION ------- Wheel Compact Wheel > --- UTILITY ---------- Small Storage Unit X0-1V1's Piety Tracker > --- WEAPON ----------- Medium Laser Assault Rifle > --- INVENTORY -------- Ion Engine Improved Terrain Scanner Seismic Detector EM Pulse Gun [Rating: 19] Favorites ----------- Power Ion Engine Engine Ion Engine Propulsion Compact Wheel Wheel Compact Wheel Utility Small Storage Unit Device Seismic Detector Storage Small Storage Unit Weapon Assault Rifle Energy Gun Medium Laser Ballistic Gun Assault Rifle Build | -11 -10 -10 ------- Run | Yrd Mat Sub Slots Evolved . | . . . Power . | . . . Propulsion . | . . . Utility . | . . . Weapon . | . . . Parts Attached 10 | 9 1 . Power 1 | 1 . . Engine 1 | 1 . . Core . | . . . Reactor . | . . . Propulsion 2 | 2 . . Treads . | . . . Leg . | . . . Wheel 2 | 2 . . Hover . | . . . Flight . | . . . Utility 4 | 3 1 . Device 3 | 2 1 . Storage 1 | 1 . . Processor . | . . . Hackware . | . . . Protection . | . . . Artifact . | . . . Weapon 3 | 3 . . Energy Gun 2 | 2 . . Energy Cannon . | . . . Ballistic Gun 1 | 1 . . Ballistic Cannon . | . . . Launcher . | . . . Special Weapon . | . . . Impact Weapon . | . . . Slashing Weapon . | . . . Piercing Weapon . | . . . Special Melee Weapon . | . . . Unidentified Prototypes 1 | . 1 . Parts Lost 6 | . . 6 Power 1 | . . 1 Propulsion 2 | . . 2 Utility . | . . . Weapon 3 | . . 3 Highest Loss Streak 3 | . . 3 To Critical Strikes 1 | . . 1 Average Backups 2 | 1 3 3 Power . | . 1 1 Propulsion . | . . . Utility 1 | . 1 2 Weapon . | . 1 . Tool/Special . | . . . Unused Backups 2 | . . 2 Power 1 | . . 1 Propulsion . | . . . Utility 1 | . . 1 Weapon . | . . . Tool/Special . | . . . Average Slot Usage (%) 90 | . 100 79 Engine 11 | . 14 7 Wheel 24 | . 28 20 Device 14 | . 14 14 Storage 14 | . 14 14 Energy Gun 12 | . 14 10 Ballistic Gun 13 | . 14 12 Peak Build Rating 19 | 7 19 19 Average Rating 10 | 6 7 17 On Entrance 8 | . 7 19 Avg Prop Armor Cover (%) . | . . . Naked Turns . | . . . Heaviest Build 15 | 15 15 15 Greatest Support 26 | 26 26 26 Greatest Overweight (x) 2 | . . 2 Average Overweight (x) . | . . . Largest Inventory Capacity 8 | 8 8 8 Average Capacity 7 | 7 8 8 Most Carried 4 | 3 4 4 Average Carried 2 | 1 3 3 Final Capacity 8 | 8 8 8 Final Carried 4 | 3 4 3 Class Distribution -------------------- 100% | Mutant Dominant Class ---------------- Mutant | -10/Materials Mutant | -10/Subcaves Resources | -11 -10 -10 ----------- Run | Yrd Mat Sub Matter Collected 406 | 365 . 41 Remotely . | . . . Salvage Created 247 | 247 . . Parts 31 | 31 . . Haulers Intercepted . | . . . Recyclers Shooed . | . . . Parts Field Recycled . | . . . Retrieved Matter . | . . . Parts Self-Destructed 2 | . . 2 Prevented . | . . . Parts Restored . | . . . Kills | -11 -10 -10 ------- Run | Yrd Mat Sub Combat Hostiles Destroyed . | . . . Classes Destroyed 3 | 3 . . Worker 2 | 2 . . Tunneler 8 | 8 . . Recycler 1 | 1 . . Best Kill Streak 3 | 3 . . Combat Bots Only . | . . . Max Kills in Single Turn 1 | 1 . . Gunslinging . | . . . Exploded . | . . . Melee . | . . . Uniques/NPCs Destroyed . | . . . Combat | -11 -10 -10 -------- Run | Yrd Mat Sub Hostile Shots Fired 54 | . . 54 Missed 14 | . . 14 Hits 40 | . . 40 Projectile 40 | . . 40 Critical Strikes 2 | . . 2 Damage Taken 596 | . . 596 Core 175 | . . 175 Absorbed by Shields . | . . . Ignored by Resistances 240 | . . 240 Core Remaining (%) 100 | 100 . . Volleys Fired 59 | 25 . 34 Largest 2 | 2 . 2 Hottest 70 | 70 . 70 Shots Fired 96 | 50 . 46 Gun 96 | 50 . 46 Cannon . | . . . Launcher . | . . . Special . | . . . Kinetic 50 | 25 . 25 Thermal 37 | 25 . 12 Explosive . | . . . Electromagnetic 9 | . . 9 Robot Hit Streak 17 | 7 . 17 Robot Miss Streak 2 | 1 . 2 Penetration Max . | . . . Secondary Targets . | . . . Shots Hit Robots 73 | 34 . 39 Core Hits 14 | 12 . 2 Critical Kills . | . . . Critical Parts Destroyed . | . . . Critical Strikes 2 | 2 . . Burn 2 | 2 . . Melee Attacks . | . . . Impact . | . . . Slashing . | . . . Piercing . | . . . Sneak Attacks . | . . . Combat Hostiles . | . . . Follow-up Attacks . | . . . Damage Inflicted 649 | 431 . 218 Guns 649 | 431 . 218 Cannons . | . . . Explosions . | . . . Melee . | . . . Ramming . | . . . Kinetic 249 | 155 . 94 Thermal 324 | 276 . 48 Explosive . | . . . Electromagnetic 76 | . . 76 Impact . | . . . Slashing . | . . . Piercing . | . . . Highest Corruption . | . . . Average Corruption . | . . . Corruption Purged . | . . . Corruption Blocked . | . . . Overload Shots . | . . . Overflow Damage . | . . . Projectiles . | . . . Explosions . | . . . Melee . | . . . Knockbacks . | . . . Impact . | . . . Kinetic . | . . . Secondary . | . . . Self-Inflicted Damage . | . . . Shots . | . . . Rammed . | . . . Targets Rammed . | . . . Kicked . | . . . Crushed . | . . . Highest Temperature 45 | 45 . . Average Temperature 16 | 16 . . Received Heat Transfer . | . . . Siege Activations . | . . . Martial Activations . | . . . Shielding Activations . | . . . Robots Disrupted . | . . . Combat Hostiles . | . . . Robots Corrupted . | . . . Combat Hostiles . | . . . Parts Fried . | . . . Impact Corruptions . | . . . Robots Melted . | . . . Combat Hostiles . | . . . Parts Melted 4 | 4 . . Heat Transferred 1110 | 962 . 148 Parts Sabotaged . | . . . Parts Stolen . | . . . Parts Stripped . | . . . Power Chain Reactions . | . . . Alert | -11 -10 -10 ------- Run | Yrd Mat Sub Maximum Alert Level . | . . . Low Security (%) 100 | 100 100 . Level 1 . | . . . Level 2 . | . . . Level 3 . | . . . Level 4 . | . . . Level 5 . | . . . High Security . | . . . Max Security . | . . . Peak Influence 10 | 10 8 . Initial . | . . . Average 1 | 2 . . Influence Increases 63 | 55 8 . Destroy 0b10 Robot/NC 55 | 55 . . Successful Hack 8 | . 8 . Influence Decreases 63 | 55 8 . Time Decay 63 | 55 8 . Squads Dispatched . | . . . Investigation . | . . . Extermination . | . . . Reinforcement . | . . . Assault . | . . . Garrison . | . . . Intercept . | . . . Searches Triggered . | . . . Construction Impeded . | . . . Haulers Reinforced . | . . . Active Scanning Responses . | . . . Cargo Convoy Interrupts . | . . . Stealth | -11 -10 -10 --------- Run | Yrd Mat Sub Distress Signals . | . . . Communications Jammed . | . . . Distress Signals . | . . . Times Spotted 2 | . . 2 Peak Tracking Total 2 | . . 2 Tactical Retreats . | . . . Traps | -11 -10 -10 ------- Run | Yrd Mat Sub Traps Triggered . | . . . Indirectly . | . . . Trap Hack Attempts . | . . . Triggered . | . . . Disarmed . | . . . Reprogrammed . | . . . Reused . | . . . Traps Extracted . | . . . Installed . | . . . Triggered . | . . . Objects Rigged 1 | . 1 . Machines | -11 -10 -10 ---------- Run | Yrd Mat Sub Machines Disabled . | . . . Max in Single Turn . | . . . Machines Repaired . | . . . Machines Dismantled . | . . . Machines Sabotaged . | . . . Overloaded Fab Kills . | . . . Hacking | -11 -10 -10 --------- Run | Yrd Mat Sub Machines Accessed 4 | . 1 3 Terminals 1 | . 1 . Fabricators . | . . . Repair Stations . | . . . Recycling Units . | . . . Scanalyzers . | . . . Garrison Access . | . . . Total Hacks 9 | . 1 8 Successful 9 | . 1 8 Failed . | . . . Catastrophic . | . . . Database Lockouts . | . . . Manual 2 | . 2 . Terminals 1 | . 1 . Fabricators . | . . . Repair Stations . | . . . Recycling Units . | . . . Scanalyzers . | . . . Garrison Access . | . . . Terminal Hacks 8 | . . 8 Record 6 | . . 6 Open Door 1 | . . 1 Release Object 1 | . . 1 Fabricator Hacks . | . . . Repair Station Hacks . | . . . Recycling Unit Hacks . | . . . Scanalyzer . | . . . Garrison Access Hacks . | . . . Unauthorized Hacks 1 | . 1 . Terminals 1 | . 1 . Detonate 1 | . 1 . Fabricators . | . . . Repair Stations . | . . . Recycling Units . | . . . Scanalyzers . | . . . Garrison Access . | . . . Data Cores Recovered . | . . . Used . | . . . Hacking Detections . | . . . Full Trace Events . | . . . Feedback Events . | . . . Feedback Blocked . | . . . Robot Schematics Acquired . | . . . Robots Built . | . . . Authchips . | . . . Time . | . . . Total Robot Build Rating . | . . . Part Schematics Acquired . | . . . Parts Built . | . . . Authchips . | . . . Time . | . . . Total Part Build Rating . | . . . Part Studies Acquired . | . . . Parts Repaired . | . . . Time . | . . . Parts Recycled . | . . . Recycled Matter . | . . . Retrieved Matter . | . . . Retrieved Components . | . . . Parts Scanalyzed . | . . . Part Schematics Acquired . | . . . Parts Damaged . | . . . Bothacking | -11 -10 -10 ------------ Run | Yrd Mat Sub Used RIF Installer . | . . . Robots Hacked . | . . . Non-combat . | . . . Combat . | . . . Robot Hacks Applied . | . . . Relay Couplers Released . | . . . Fabnet Peak Effective % . | . . . Robots Rewired . | . . . Allies Hacked . | . . . Hacks Repelled . | . . . Allies | -11 -10 -10 -------- Run | Yrd Mat Sub Total Allies . | . . . Largest Group . | . . . Highest-Rated Group . | . . . Highest-Rated Ally . | . . . Total Orders . | . . . Ally Attacks . | . . . Total Damage . | . . . Kills . | . . . Allies Corrupted . | . . . Allies Melted . | . . . X0-1V1 Amusement Gains 30 | . 10 20 Average Entertainment 5 | . 10 5 Good Acts 6 | . . 6 Bad Acts 2 | . . 2 Intel | -11 -10 -10 ------- Run | Yrd Mat Sub Active Infowar (turns) 421 | 163 258 . Seismic 421 | 163 258 . Robot Analysis Total . | . . . Derelict Logs Recovered . | . . . Drone Launches . | . . . Drone Recoveries . | . . . Exploration | -11 -10 -10 ------------- Run | Yrd Mat Sub Turns Passed 740 | 245 261 234 Spaces Moved 402 | 171 83 148 Core 5 | 2 . 3 Treads . | . . . Legs . | . . . Wheels 397 | 169 83 145 Hover . | . . . Flight . | . . . Fastest Speed 50 | 50 90 90 Average Speed 90 | 89 90 91 Slowest Speed 150 | 100 90 150 Overloaded Moves . | . . . Propulsion Burnouts . | . . . Robots Hopped . | . . . Potential Cave-ins . | . . . Cave-ins Triggered . | . . . Exploration Rate (%) 11 | 4 20 9 Regions Visited 2 Branch Regions 1 Pre-discovered Areas 1 | . . 1 Known Exits Taken . | . . . Unknown Exits Taken 2 | 1 1 . Scrap Searched . | . . . Spaces Dug . | . . . Terrain Destroyed . | . . . Melee . | . . . Projectile . | . . . AOE . | . . . Terrain Rammed . | . . . Walls Destroyed . | . . . Machines Disabled . | . . . Actions | -11 -10 -10 --------- Run | Yrd Mat Sub Total 676 | 209 268 199 Wait 198 | . 184 14 Move 400 | 170 82 148 Hop . | . . . Pick Up 3 | 2 1 . Fast Attach 10 | 9 . 1 Attach 1 | . . 1 Detach 2 | 2 . . Swap 1 | . 1 . Drop 1 | 1 . . Fire 59 | 25 . 34 Melee . | . . . Ram . | . . . Kick . | . . . Crush . | . . . Escape Stasis . | . . . Rewire . | . . . Trap . | . . . Miscellaneous 1 | . . 1 Route ------- -11/Scrapyard -10/Materials -10/Subcaves (discovered 1 exit: Mat) History --------- Turn | Location | Event 52 | -11/Scrapyard | Discovered new exit (range 14) 246 | -11/Scrapyard | Entered Materials 304 | -10/Materials | Build established: Mutant 478 | -10/Materials | Discovered new exit (range 10) 503 | -10/Materials | Prayed at D.C.S.S. Altar Unit 507 | -10/Materials | Entered Subcaves 508 | -10/Subcaves | Approached by a straggling Scientist 526 | -10/Subcaves | TH resistance permanently improved by X0-1V1 (+10%; -100 max core) 553 | -10/Subcaves | Identified exit to Materials 553 | -10/Subcaves | X0-1V1 revealed exit location to -8/Materials 566 | -10/Subcaves | Released subatomizers from SUBCON Basin 619 | -10/Subcaves | Visited Clippyterm 622 | -10/Subcaves | Learned location of Section 7 (-2) 622 | -10/Subcaves | Learned Research security intel 674 | -10/Subcaves | Core integrity fell below 50% 690 | -10/Subcaves | Lost 3 parts (1p1n1w) 721 | -10/Subcaves | Core integrity fell below 20% 741 | -10/Subcaves | Destroyed by 5L-FEP(R) with Subdweller Machine Gun Last Messages --------------- 00673_ Acquired 41 matter. 00679_ Subatomizers dissect the Disposable Heat Sink. 00679_ Heat dissipation returns to normal. 00680_ X0-1V1: "And it's a trip and a fumble!" 00680_ Assault Rifle tossed aside. 00683_ Acquired Assault Rifle. 00694_ KI resistance returns to normal. 00701_ X0-1V1: "Let the electrons flow!" (+1100 energy capacity) HT-O5P(c): "I think it's somewhere west of here" 00714_ Critical hit (Destroy). 00714_ Assault Rifle destroyed. 00716_ Com. Wheel destroyed. 00731_ X0-1V1 reimagines you as a refrigerator in hell. 00735_ 5L-FEP(R) misfires. 00739_ EM Pulse Gun destroyed. 00739_ X0-1V1 is amused. 00741_ X0-1V1 chortles! Map ----- +----------------------------------------------------+ | ??????????????????????????????????????????### #?? | | ??????????????????????????????#######??### #?? | | ??????????????????????????????#"""""#?## ## #??? | | ??????????????????????????????#"X "### # #??? | | ??????????????????????????????#""& "#" # # ##?? | | ??????????????????????????????#"" "#" # #?? | | ??????????????????????????????#"" ## #?? | | ??????????????????????????????#"" "#"X### #?? | | ??????????????????????????????########## ##? | | ???????????????????????????????????????## #? | | ????????????????????????????????????????# ### #? | | ????????????????????????????????????????##?# #? | | ???????????????????????????????????????????# #? | | ???????????????????????????????????????????# #? | | ???????????????????????????????????????????# ##? | | ???????????????????????????????????????????# #? | | ???????????????????????????????????????????# #? | | ???????????????????????????????????????????## ##? | | ?????????????????????????????#######???###### #?? | | ???????????####??######?????## ##### ##? | | ??????????## #### ## ####### # #? | | ????####### ## ##? | | ????#"""## R c ######?? | | ????#"" ## ### # ### ### ##?????? | | ????#"X & !#?######?## #?## #?????? | | ????#"" ## "" #???????##@ ###### ##????? | | ????#"""###"" " " ?????## #??## ####?? | | ????#####?##"" " ????# #??# #?? | | ???????????## " ## # ? #??# #?? | | ?????????????####????? #?# #?? | | ???????????????????? ## #?##### #?? | | ??????????????????? ??# ## #?????## ##? | | ??????????????????????# ###?##??????# #? | | ??????????????????????# ##???????????# #? | | ??????????????????????# #????????????# #? | | ??????????????????????## ????????????# ##? | | ??????????????????????? ??????????? ## ###?? | | ??????????????????????? ??????????# ## ???? | | ?????????????????????????????????????# ?# #???? | | ???????????????????????????????????? ? #???? | | ???????????????????????????????????### ?# ???? | | ?????????????????????????????????????# ?? #???? | | ?????????????????????????????????????# ?? #???? | | ?????????????????????????????????????# ?? ???? | | ?????????????????????????????????????# ##?? #???? | | ??????????????????????????????????????? ???? ????? | | ???????????????????????????????????????????? ????? | | ???????????????????????????????????????????? ????? | | ?????????????????????????????????????????????????? | | ?????????????????????????????????????????????????? | +----------------------------------------------------+ Best States ------------- Heat Dissipation 25 Energy Generation 16 Energy Capacity 1200 Matter Stores 300 Matter Capacity 300 Sight Range 16 Terrain Scan Density 10 Resistance: KI 34 Resistance: TH 10 Evasion (%) 42 Item Schematics ----------------- None Robot Schematics ------------------ None Fabricated ------------ Nothing Repaired ---------- Nothing Studied --------- None Alien Tech Used ----------------- None Achievements -------------- None Challenges ------------ None Game ------ Seed TractorArmageddonHammer Manual? 0 Play Time 00:06:38 Cumulative 173.9 hours Start 2026.08.25 @ 22:06:25 End 2026.08.25 @ 22:12:08 Sessions 1 Manual Loads 0 Difficulty Rogue Special Mode None Game No. 347 Rogue 347 Adventurer 0 Explorer 0 Win Type - Total 2 Types 2/0/0/0/0/0/0/0/0/0 Lore% 57 Gallery% 59 Achievement% 45 Wizard Run 0 Options --------- Layout 2 ASCII 0 Keyboard 1 Movement Arrows Keybinds 0 Fullscreen 1 Font 24/Smallcaps Map View 50x44 Zoom Use 0% Tactical HUD 1 Map Filters NONE Filters NONE Steam 1 RUN: 06897600-dfc0-4705-8633-3463152c36e2